{"text_format":"1","workbook":"xlsx","n_sheets":1,"sheets":["Rechnung"],"not_rendered":{"charts":0,"images":5,"macros":1,"external_links":0,"defined_names":9,"comments":1,"pivot_tables":0},"unopened":[],"bounds":{"document_bytes":16777216,"sheet_cells":100000,"rows_first":2000,"rows_last":500,"rows_between":2000,"halvings":0,"cell_chars":16384,"cell_head_chars":4096},"cells_cut":0,"cells_raw":0,"read":"whole","date_system":"1900"}

{"sheet":"Rechnung","index":0,"n_rows":237,"n_cols":17,"rows_kept":237,"cut":false,"hidden":false,"merged":[[55,9,55,10],[53,9,53,10],[51,6,51,8],[53,6,53,8],[54,6,54,8],[55,6,55,8],[56,6,56,8],[57,6,57,8],[57,9,57,10],[56,9,56,10],[0,4,0,8],[4,9,4,10],[2,4,2,6],[3,4,3,6],[176,5,176,7],[177,5,177,7],[178,5,178,7],[21,5,21,10],[36,6,36,7],[38,6,38,7],[40,5,40,10],[51,9,51,10],[54,9,54,10],[120,5,120,7],[59,5,59,6],[59,7,59,8],[59,9,59,10],[62,9,62,10],[50,5,50,6],[50,7,50,8],[50,9,50,10],[58,5,58,6],[58,7,58,8],[58,9,58,10],[63,9,63,10],[64,9,64,10],[65,9,65,10],[66,9,66,10],[67,9,67,10],[100,5,100,7],[93,5,93,7],[94,5,94,7],[95,5,95,7],[97,5,97,7],[98,5,98,7],[131,5,131,7],[132,5,132,7],[68,9,68,10],[69,9,69,10],[70,9,70,10],[71,9,71,10],[72,9,72,10],[102,5,102,7],[121,5,121,7],[129,5,129,7],[128,5,128,7],[130,5,130,7],[104,5,104,7],[102,8,102,9],[104,8,104,9],[119,5,119,7],[103,5,103,10],[105,5,105,10],[138,5,138,7],[139,5,139,7],[140,5,140,7],[146,5,146,9],[147,5,147,9],[148,5,148,9],[150,5,150,9],[149,5,149,10],[133,5,133,7],[134,5,134,7],[135,5,135,7],[136,5,136,7],[137,5,137,7],[234,5,234,6],[214,5,214,6],[223,7,223,10],[224,7,224,10],[225,7,225,10],[226,7,226,10],[151,5,151,9],[152,5,152,9],[153,5,153,9],[201,5,201,7],[202,5,202,7],[179,5,179,7],[183,5,183,10],[198,5,198,7],[199,5,199,7],[200,5,200,7],[10,9,10,10],[11,9,11,10],[12,9,12,10],[7,9,7,10],[2,9,2,10],[3,9,3,10],[5,9,6,10],[4,4,4,6],[5,4,5,6],[6,4,6,6],[7,4,7,6],[9,9,9,10]]}
[null,null,null,null,"Rechnung für Gerichtsgutachten gem. JVEG"]
[null,null,null,null,null,null,null,null,"Gutachter:"]
[null,null,null,null,null,null,null,null,"Name, Vorname:"]
[null,null,null,null,"Amtsgericht Musterstadt",null,null,null,"Straße:"]
[null,null,null,null,"Musterstraße 1",null,null,null,"PLZ, Ort:"]
[null,null,null,null,"11111 Musterhausen",null,null,null,"Begutachtung "]
[null,null,null,null,null,null,null,null,"in Sachen:"]
[null,null,null,null,null,null,null,null,"Aktenzeichen"]
[]
[null,null,null,null,null,null,null,null,"Rechnungs-Nr.:"]
[null,null,null,null,null,null,null,null,"Steuer-Nr.:"]
[null,null,null,null,null,null,null,null,"Rechnungs-Datum:"]
[null,null,null,null,null,null,null,null,"Zeitpunkt der Leistung:"]
[]
[null,null,null,null,null,"Für meine Tätigkeit als Gutachter/in in der o. g. Angelegenheit erlaube ich mir, folgende Rechnung zu stellen:"]
[null,null,null,null,"1.","Grundvergütung"]
[null,null,null,null,null,"a. Auflistung der Tätigkeit"]
[]
[null,null,null,null,null,"Tätigkeit und dafür veranschlagte Zeit",null,null,null,null,"Zeit in Minuten",null,null,null,null,"Flag","Prozedur"]
[]
[null,null,null,null,null,"a. Durchsicht der Unterlagen, Aktenstudium",null,null,null,null,null,null,null,null,null,false,"Check1"]
[null,null,null,null,null,"Begründung"]
[]
[null,null,null,null,null,"b. Anamnese und körperliche Untersuchung"]
[]
[null,null,null,null,null,"c. Ausarbeitung des Gutachtens"]
[]
[null,null,null,null,null,"d. Diktat und Korrektur"]
[]
[null,null,null,null,null,"    Gesamtminuten:",null,null,null,null,{"$f":"K21+K24+K26+K28","v":0}]
[]
[]
[null,null,null,null,null,"b. Einteilung der Honorargruppen gem. § 9 JVEG"]
[null,null,null,null,null,null,null,null,null,null,null,null,null,null,null,true,"Check3"]
[null,null,null,null,null,"Nr.","Beschreibung",null,"Zeit in Stunden ","Honorar / Stunde","Honorar"]
[]
[null,null,null,null,null,"M 1","Einfache gutachterliche Beurteilung, insbes. Gebührenrechtsfragen",null,{"$f":"ROUNDUP(K30/60/0.5,0)*0.5","v":0},65,{"$f":"I37*J37","v":0}]
[]
[null,null,null,null,null,"M 3","Gutachten mit hohem Schwierigkeitsgrad",null,{"$f":"ROUNDUP(K30/60/0.5,0)*0.5","v":0},100,{"$f":"I39*J39","v":0},null,null,null,null,false,"Check2"]
[]
[null,null,null,null,null,"Begründung"]
[null,null,null,null,null,null,null,null,null,"Zwischensumme:",{"$f":"IF(n_check3=TRUE,K37,K39)","v":0}]
[]
[]
[]
[]
[]
[null,null,null,null,"2.","Honorare für besondere Leistungen gem. § 10 JVEG",null,null,null,null,null,null,null,null,null,true,"Check 5"]
[]
[null,null,null,null,null,"a. Leistungen nach § 10 Abs. 1 JVEG"]
[]
[null,null,null,null,null,"Nr. der Leistung \n(Anlage 2 JVEG)","Bezeichnung der Leistung",null,null,"Honorar (nach Anlage 2 JVEG)"]
[]
[]
[null,null,null,null,null,null,null,null,200]
[null,null,null,null,null,null,null,null,300]
[null,null,null,null,null,null,null,null,400]
[null,null,null,null,null,null,null,null,500]
[]
[]
[null,null,null,null,null,"b. Leistungen nach § 10 Abs. 2 JVEG"]
[]
[null,null,null,null,null,"GOÄ-Nr.","1-fache Gebühr","Faktor","Zuschlag nach 5298 GOÄ","Gebühr in €"]
[null,null,null,null,null,null,null,1.3,null,{"$f":"IF(G64<>\"\",IF(P64=TRUE,ROUND((G64*H64)+(G64*0.25),2),G64*H64),\"\")","v":""},null,null,null,null,null,false]
[null,null,null,null,null,null,null,1.3,null,{"$f":"IF(G65<>\"\",IF(P65=TRUE,ROUND((G65*H65)+(G65*0.25),2),G65*H65),\"\")","v":""},null,null,null,null,null,false]
[null,null,null,null,null,null,null,1.3,null,"",null,null,null,null,null,false]
[null,null,null,null,null,null,null,1.3,null,"",null,null,null,null,null,false]
[null,null,null,null,null,null,null,1.3,null,"",null,null,null,null,null,false]
[null,null,null,null,null,null,null,1.3,null,"",null,null,null,null,null,false]
[null,null,null,null,null,null,null,1.3,null,"",null,null,null,null,null,false]
[null,null,null,null,null,null,null,1.3,null,"",null,null,null,null,null,false]
[null,null,null,null,null,null,null,1.3,null,"",null,null,null,null,null,false]
[null,null,null,null,null,null,null,1.3,null,"",null,null,null,null,null,false]
[]
[null,null,null,null,null,null,null,null,null,"Zwischensumme:",{"$f":"SUM(J54:K58)+SUM(J64:K73)","v":0}]
[]
[]
[]
[]
[]
[]
[]
[]
[]
[]
[]
[]
[]
[]
[]
[]
[null,null,null,null,"3.","Sonstige Aufwendungen gem. § 7 JVEG"]
[]
[null,null,null,null,null,"Aufwendung",null,null,"Anzahl","Einzelbetrag","Gesamtbetrag"]
[null,null,null,null,null,"s/w Kopien bis 50 Seiten",null,null,null,0.5,{"$f":"I95*J95","v":0}]
[null,null,null,null,null,"s/w Kopien ab 51 Seiten",null,null,null,0.15,{"$f":"I96*J96","v":0}]
[]
[null,null,null,null,null,"Farbkopien bis 50 Seiten",null,null,null,1,0]
[null,null,null,null,null,"Farbkopien ab 51 Seiten",null,null,null,0.3,0]
[]
[null,null,null,null,null,"Elektr. gespeicherte Daten, je Datei",null,null,null,1.5,{"$f":"IF(I101*J101>5,5,I101*J101)","v":0}]
[]
[null,null,null,null,null,"Vertretung",null,null,"Aufgewendete Kosten angeben",null,null,null,null,null,null,false]
[null,null,null,null,null,"Begründung zu Vertretung"]
[null,null,null,null,null,"Begleitperson",null,null,"Aufgewendete Kosten angeben",null,null,null,null,null,null,false]
[null,null,null,null,null,"Begründung zu Begleitpersonal"]
[]
[null,null,null,null,null,null,null,null,null,"Zwischensumme:",{"$f":"SUM(K95:K105)","v":0}]
[]
[]
[]
[]
[]
[]
[]
[null,null,null,null,"4.","Ersatz für besondere Aufwendungen gem. § 12 JVEG"]
[]
[null,null,null,null,null,"a. Gutachtenerstellung"]
[]
[null,null,null,null,null,null,null,null,"Anzahl","Betrag je Anzahl","Betrag"]
[null,null,null,null,null,"Anfertigung des schriftlichen Gutachtens",null,null,null,"0,90 € je angefangene 1000 Anschläge",{"$f":"ROUNDUP(I121,-3)/1000*0.9","v":0}]
[null,null,null,null,null,"Erforderliche Lichtbilder/Farbausdrucke, je weiterem Abzug",null,null,null,2,{"$f":"I122*J122","v":0}]
[]
[]
[null,null,null,null,null,"b. Für die Untersuchung verbrauchte Stoffe / Werkzeuge / Arbeitsmaterial"]
[]
[]
[]
[null,null,null,null,null,"Stoff/Werkzeug/Material",null,null,"Anzahl","Kosten je Anzahl","Betrag"]
[null,null,null,null,null,null,null,null,null,null,{"$f":"IF(J130<>\"\",I130*J130,\"\")","v":""}]
[null,null,null,null,null,null,null,null,null,null,{"$f":"IF(J131<>\"\",I131*J131,\"\")","v":""}]
[null,null,null,null,null,null,null,null,null,null,""]
[null,null,null,null,null,null,null,null,null,null,""]
[null,null,null,null,null,null,null,null,null,null,""]
[null,null,null,null,null,null,null,null,null,null,""]
[null,null,null,null,null,null,null,null,null,null,""]
[null,null,null,null,null,null,null,null,null,null,""]
[null,null,null,null,null,null,null,null,null,null,""]
[null,null,null,null,null,null,null,null,null,null,""]
[]
[]
[]
[]
[null,null,null,null,null,"c. Sonstige zur Vorbereitung und Erstattung des Gutachtens notwendige Kosten"]
[]
[null,null,null,null,null,"speziell benötigte Hilfskräfte",null,null,null,null,"Kosten",null,null,null,null,false]
[]
[]
[]
[null,null,null,null,null,"Begründung"]
[]
[]
[]
[]
[]
[null,null,null,null,null,"d. Umsatzsteuer"]
[]
[null,null,null,null,null,null,null,null,null,"Zwischensumme:",{"$f":"SUM(K121:K122)+SUM(K130:K139)+SUM(K147:K155)","v":0}]
[]
[]
[]
[]
[]
[]
[]
[]
[]
[]
[]
[]
[]
[]
[null,null,null,null,"5.","Besondere Aufwendungen bei Gerichtsterminen"]
[]
[null,null,null,null,null,"a. Fahrtkostenersatz gem. § 5 JVEG"]
[]
[null,null,null,null,null,"Kosten",null,null,"Anzahl KM","Einzelbetrag","Gesamtbetrag"]
[null,null,null,null,null,"Benutzung von öffentlichen, regelmäßig verkehrenden Beförderungsmitteln"]
[null,null,null,null,null,"Eigener PKW",null,null,null,"0,30 € / gefah-rener Kilometer (Hin- u. Rückweg)",{"$f":"I179*0.3","v":0}]
[null,null,null,null,null,"Sonstige Kosten, die durch Antritt der Reise verursacht werden (insbes. Parkgebühren)"]
[]
[null,null,null,null,null,"Start u./o. Ziel der Reise abweichend vom in der Ladung genannten Start- /Zielort ",null,null,null,null,null,null,null,null,null,false,"Check4"]
[]
[null,null,null,null,null,"Begründung"]
[]
[null,null,null,null,null,null,null,null,null,"Zwischensumme:",{"$f":"SUM(K178:K180)","v":0}]
[]
[]
[]
[]
[]
[]
[]
[]
[]
[]
[null,null,null,null,null,"b. Aufwandsentschädigung gem. § 6 JVEG"]
[]
[null,null,null,null,null,"Abwesenheit vom Aufenthaltsort",null,null,"pauschale Zeitangaben","Anzahl","Betrag",null,null,null,null,1]
[null,null,null,null,null,"Ab 24 Stunden (pauschal 24,00 € / Tag)",null,null,null,null,{"$f":"IF(P199=1,J200*24,\"\")","v":0}]
[null,null,null,null,null,"14 - 24 Stunden (pauschal 12,00 €)",null,null,null,null,{"$f":"IF(P199=2,12,\"\")","v":""}]
[null,null,null,null,null,"8 - 14 Stunden (pauschal 6,00 €)",null,null,null,null,{"$f":"IF(P199=3,6,\"\")","v":""}]
[null,null,null,null,null,"Übernachtungskosten 20 € (pauschal)",null,null,null,null,{"$f":"IF(J203<>\"\",J203*20,\"\")","v":""}]
[]
[null,null,null,null,null,null,null,null,null,"Zwischensumme:",{"$f":"SUM(K200:K203)","v":0}]
[]
[]
[]
[]
[]
[]
[]
[null,null,null,null,null,"Zwischensummen gesamt:",null,{"$f":"K42+K75+K108+K158+K186+K205","v":0}]
[]
[null,null,null,null,null,{"$f":"IF(P221=TRUE,\"Umsatzsteuer 0 %\",\"Umsatzsteuer 19 %\")","v":"Umsatzsteuer 19 %"},null,{"$f":"IF(F215=\"Umsatzsteuer 19 %\",ROUND(H213*19%,2),0)","v":0}]
[]
[null,null,null,null,null,"Gesamtsumme:",null,{"$f":"H213+H215","v":0}]
[]
[null,null,null,null,null,"Diese Rechnung ist umsatzsteuerfrei gem. § 4 Nr. 14 UStG.",null,null,null,null,null,null,null,null,null,false]
[null,null,null,null,null,"Diese Rechnung ist umsatzsteuerfrei gem. § 19 Abs. 1 UStG.",null,null,null,null,null,null,null,null,null,false]
[null,null,null,null,null,null,null,null,null,null,null,null,null,null,null,{"$f":"IF(OR(P219=TRUE,P220=TRUE),TRUE,FALSE)","v":false}]
[null,null,null,null,null,"Ich bitte um zeitnahe Überweisung der Gesamtsumme auf folgendes Konto:"]
[]
[null,null,null,null,null,"Kontoinhaber:"]
[null,null,null,null,null,"BIC:"]
[null,null,null,null,null,"IBAN:"]
[null,null,null,null,null,"Verwendungszweck:"]
[]
[]
[null,null,null,null,null,"Mit freundlichen Grüßen"]
[]
[]
[]
[]
[]
[]
[null,null,null,null,null,"(Namen eingeben; Unterschrift)"]